bitfinex-derivatives/quotes_SOLF0:USTF0_20251108
["timestamp","ask_amount","ask_price","bid_price","bid_amount"]
[1762603978611,3.18447391,159.25,159.09,3.18447391]
[1762603978612,3.07721766,159.19,159.16,3.16482869]
[1762603979406,3.07721766,159.19,159.16,0.04482869]
[1762603979813,0.04721766,159.19,159.16,3.16482869]
[1762603980004,3.07721766,159.19,159.16,3.16482869]
[1762603980205,3.07721766,159.19,159.16,0.04482869]
[1762603981211,3.07721766,159.19,159.16,3.24482869]
[1762603981417,3.07721766,159.19,159.16,0.04482869]
[1762603984614,0.04721766,159.19,159.16,8.90252869]
[1762603984806,3.01721766,159.19,159.16,0.04482869]
[1762603986119,2.97,159.18,159.16,0.04482869]
[1762603989012,8.6271,159.18,159.16,0.04482869]
[1762603989214,2.97,159.17,159.16,0.04482869]
[1762603989409,2.97,159.17,159.09,3.2]
[1762603989612,2.97,159.16,159.09,3.2]
[1762603990019,2.97,159.16,159.06,3.2]
[1762603990519,0.0431163,159.13,159.09,3.24504273]
[1762603990922,3.0131163,159.13,159.09,3.24504273]
[1762603991823,0.0431163,159.13,159.09,3.24504273]
[1762603992022,3.0131163,159.13,159.09,3.24504273]
[1762603992725,3.0131163,159.13,159.09,0.04504273]
[1762603993824,2.97,159.12,159.09,0.04504273]
[1762603994428,3.0131163,159.13,159.09,3.24504273]
[1762603994829,3.0131163,159.13,159.09,0.04504273]
[1762603999035,2.97,159.12,159.09,0.04504273]
[1762603999229,2.97,159.1,159.09,0.04504273]
[1762603999726,7.79483578,159.1,159.09,0.04504273]
[1762604000331,2.97,159.1,159.09,0.04504273]
[1762604000538,7.79737322,159.1,159.09,0.04504273]
[1762604000738,2.97,159.09,159.03,5.6623]
[1762604001339,2.97,159.09,159.02,3.2]
[1762604001340,2.97,159.09,159.01,5.6629]
[1762604001539,2.97,159.08,159.01,5.6629]
[1762604001739,3.01205757,159.06,159.02,3.2]
[1762604001935,3.01205757,159.06,159.02,8.8625]
[1762604003632,3.01205757,159.06,158.91,88.145]
[1762604003633,2.97,159.03,158.89,3.2]
[1762604003833,0.04751466,158.98,158.9,3.2]
[1762604004040,3.01751466,158.98,158.9,3.2]
[1762604004950,3.01751466,158.98,158.92,5.6661]
[1762604005135,2.97,158.97,158.82,1.09476996]
[1762604005443,2.97,158.97,158.21,93.11664953]
[1762604005444,2.97,158.87,158.78,3.2]
[1762604005839,0.04109427,158.84,158.8,3.2]
[1762604006038,2.97,158.89,158.8,3.2]
[1762604006234,0.04336592,158.84,158.8,3.2]
[1762604006439,0.04336592,158.84,158.81,3.2]
[1762604007038,0.04336592,158.84,158.83,3.2]
[1762604007240,0.04336592,158.84,158.73,62.0]
[1762604007241,3.01336592,158.84,158.74,3.2]
[1762604007547,2.97,158.91,158.81,5.24792837]
[1762604007740,2.04792837,158.9,158.79,2.04792837]
[1762604007940,2.97,158.89,158.81,5.6702]
[1762604008137,2.97,158.89,158.81,3.2]
[1762604008343,0.04543644,158.87,158.83,0.04718545]
[1762604008535,0.04543644,158.87,158.83,3.24718545]
[1762604009138,0.04543644,158.87,158.83,0.04718545]
[1762604009139,3.01543644,158.87,158.83,0.04718545]
[1762604009751,0.04543644,158.87,158.83,3.24718545]
[1762604010048,3.01543644,158.87,158.83,0.04718545]
[1762604010642,3.01543644,158.87,158.83,3.24718545]
[1762604010643,0.04543644,158.87,158.83,3.24718545]
[1762604011044,3.10543644,158.87,158.83,0.04718545]
[1762604011348,0.04543644,158.87,158.83,2.98718545]
[1762604011747,3.10543644,158.87,158.83,2.98718545]
[1762604011947,3.10543644,158.87,158.83,0.04718545]
[1762604012143,3.10543644,158.87,158.83,2.98718545]
[1762604012742,3.10543644,158.87,158.83,0.04718545]
[1762604018259,3.10543644,158.87,158.83,2.98718545]
[1762604019159,3.10543644,158.87,158.83,0.04718545]
[1762604021354,3.06,158.86,158.83,0.04718545]
[1762604023556,3.07,158.84,158.83,0.04718545]
[1762604024269,3.07,158.82,158.75,3.07]
[1762604024967,3.07,158.82,158.76,5.6718]
[1762604025463,3.1150563,158.81,158.77,3.07]
[1762604025661,3.11134798,158.81,158.77,3.07]
[1762604026659,0.04134798,158.81,158.77,3.07]
[1762604027560,3.11134798,158.81,158.77,3.07]
[1762604029268,0.04134798,158.81,158.77,3.07]
[1762604029763,0.04134798,158.81,158.78,3.07]
[1762604031368,3.11134798,158.81,158.76,8.7419]
[1762604031769,3.11134798,158.81,158.77,3.07]
[1762604032163,3.11134798,158.81,158.77,8.7415]
[1762604032366,3.11134798,158.81,158.77,3.07]
[1762604035869,0.04134798,158.81,158.79,3.07]
[1762604036173,0.04390119,158.82,158.79,3.07]
[1762604036469,0.04390119,158.82,158.78,2.05559226]
[1762604036470,0.04390119,158.82,158.81,3.07]
[1762604036866,3.07,158.88,158.84,3.07]
[1762604037072,3.07,158.91,158.84,3.07]
[1762604037471,3.07,158.91,158.86,8.7383]
[1762604037972,0.047706,158.9,158.87,0.0405466]
[1762604038172,0.047706,158.9,158.88,3.07]
[1762604038467,3.07,158.98,158.88,3.07]
[1762604038668,3.07,158.97,158.88,3.07]
[1762604038973,5.12559226,158.96,158.89,3.07]
[1762604039164,3.07,158.95,158.89,3.07]
[1762604039368,3.11760932,158.94,158.9,0.04215376]
[1762604040471,3.11760932,158.94,158.9,3.11215376]
[1762604040667,0.04760932,158.94,158.9,3.11215376]
[1762604041468,2.94760932,158.94,158.9,0.04215376]
[1762604041672,2.94760932,158.94,158.9,3.00215376]
[1762604042177,0.04760932,158.94,158.9,3.00215376]
[1762604042376,2.9,158.93,158.82,2.96]
[1762604042581,2.9,158.93,158.86,2.96]
[1762604042775,8.5647,158.97,158.86,2.96]
[1762604043277,4.70447453,158.96,158.89,8.6272]
[1762604043480,2.9,158.93,158.91,0.04627522]
[1762604043674,2.9,158.93,158.9,0.04570493]
[1762604043882,0.04196837,158.94,158.9,3.00570493]
[1762604044177,2.94196837,158.94,158.9,3.00570493]
[1762604044378,0.04196837,158.94,158.9,3.00570493]
[1762604045576,2.94196837,158.94,158.9,0.04570493]
[1762604046581,2.9,158.92,158.9,0.04570493]
[1762604048774,8.5665,158.92,158.9,0.04570493]
[1762604048977,12.11171959,158.91,158.83,2.96]
[1762604049183,2.9,158.91,158.83,2.96]
[1762604049374,2.9,158.91,158.84,2.96]
[1762604050085,2.9459391,158.89,158.8,2.96]
[1762604050276,0.04343913,158.86,158.8,2.96]
[1762604050879,7.63771837,158.85,158.74,2.96]
[1762604051080,0.04556635,158.81,158.74,2.96]
[1762604051680,0.04556635,158.81,158.8,2.96]
[1762604054178,0.04556635,158.81,158.79,8.6308]
[1762604054384,0.04556635,158.81,158.79,2.96]
[1762604055389,2.9,158.87,158.79,2.96]
[1762604055686,2.9,158.87,158.8,2.96]
[1762604056187,8.5686,158.86,158.8,2.96]
[1762604056397,2.94284762,158.85,158.81,0.04785197]
[1762604057183,8.61174762,158.85,158.81,0.04785197]
[1762604057491,2.9,158.84,158.81,0.04785197]
[1762604058091,2.9,158.82,158.81,0.04785197]
[1762604062987,2.9,158.84,158.81,0.04785197]
[1762604063589,2.9,158.82,158.81,0.04785197]
[1762604065791,2.9,158.84,158.81,0.04785197]
[1762604067197,2.9,158.83,158.81,0.04785197]
[1762604067697,2.9,158.82,158.81,0.04785197]
[1762604069498,2.9,158.84,158.81,0.04785197]
[1762604070204,2.9,158.82,158.7,2.96]
[1762604070392,2.9,158.79,158.7,2.96]
[1762604070801,8.5721,158.76,158.7,2.96]
[1762604071195,3.22538791,158.75,158.7,2.96]
[1762604072198,8.89788791,158.75,158.68,8.5747]
[1762604072402,0.0460317,158.73,158.68,8.5747]
[1762604072604,0.0460317,158.73,158.69,2.9]
[1762604072799,3.2260317,158.73,158.69,2.9]
[1762604073200,3.2260317,158.73,158.67,2.9]
[1762604073403,3.18,158.71,158.67,2.9]
[1762604073596,0.04771259,158.72,158.67,2.9]
[1762604074292,0.04771259,158.72,158.7,2.9]
[1762604074500,0.04476239,158.73,158.7,2.9]
[1762604075002,0.04476239,158.73,158.71,5.6736]
[1762604075196,0.04476239,158.73,158.72,2.9]
[1762604076001,0.04476239,158.73,158.72,4.16]
[1762604076201,271.08690743,158.81,158.73,2.9]
[1762604077000,271.08690743,158.81,158.75,2.9]
[1762604077199,0.04746425,158.79,158.75,2.94131661]
[1762604077701,0.04746425,158.79,158.78,2.9]
[1762604078102,3.18,158.84,158.78,2.9]
[1762604079200,0.04322066,158.83,158.79,8.61803044]
[1762604079408,3.22322066,158.83,158.79,0.04723044]
[1762604080807,0.04322066,158.83,158.79,2.94723044]
[1762604081608,0.04322066,158.83,158.79,8.61803044]
[1762604083610,0.04322066,158.83,158.8,5.6704]
[1762604083816,0.04322066,158.83,158.8,8.7804]
[1762604084906,0.04322066,158.83,158.81,3.11]
[1762604087818,0.04322066,158.83,158.79,3.15723044]
[1762604088313,0.04322066,158.83,158.82,3.11]
[1762604089811,0.04322066,158.83,158.8,3.11]
[1762604090314,3.00322066,158.83,158.79,0.04723044]
[1762604090918,2.96,158.82,158.79,0.04723044]
[1762604094118,5.71282066,158.83,158.79,0.04723044]
[1762604094119,2.96,158.8,158.79,0.04723044]
[1762604094313,2.96,158.8,158.73,3.11]
[1762604094919,8.6307,158.8,158.73,3.11]
[1762604095119,2.96,158.8,158.73,3.11]
[1762604095418,0.04296986,158.78,158.75,3.15043095]
[1762604096022,0.04296986,158.78,158.77,3.11]
[1762604096724,2.96,158.85,158.77,8.7814]
[1762604096914,2.96,158.84,158.77,8.7814]
[1762604097228,2.96,158.84,158.77,5.6714]
[1762604097724,2.96,158.81,158.79,0.04421834]
[1762604098517,8.6303,158.81,158.79,0.04421834]
[1762604098722,2.96,158.8,158.79,0.04421834]
[1762604100629,3.00461908,158.82,158.79,0.04421834]
[1762604101129,0.04461908,158.82,158.8,3.09]
[1762604101929,0.04461908,158.82,158.8,8.7605]
[1762604102926,0.04461908,158.82,158.79,0.04421834]
[1762604103225,3.06461908,158.82,158.79,0.04421834]
[1762604104022,3.06461908,158.82,158.79,5.71511834]
[1762604104424,3.06461908,158.82,158.79,0.04421834]
[1762604104833,0.04461908,158.82,158.79,3.13421834]
[1762604105224,0.04461908,158.82,158.81,3.09]
[1762604105839,3.02,158.89,158.82,3.09]
[1762604106726,3.02,158.89,158.85,5.6687]
[1762604106922,3.06792715,158.89,158.85,8.80075065]
[1762604107122,3.06792715,158.89,158.85,3.13205065]
[1762604107339,0.04792715,158.89,158.85,3.13205065]
[1762604108541,3.06792715,158.89,158.85,3.13205065]
[1762604108839,0.04792715,158.89,158.85,3.13205065]
[1762604109145,0.04792715,158.89,158.85,8.80075065]
[1762604109438,0.04792715,158.89,158.86,3.09]
[1762604109628,0.04792715,158.89,158.88,3.09]
[1762604114544,3.02,158.95,158.89,3.09]
[1762604115546,0.04058465,158.94,158.9,3.13367407]
[1762604116037,3.06058465,158.94,158.9,3.13367407]
[1762604116244,3.06058465,158.94,158.9,0.04367407]
[1762604116541,3.06058465,158.94,158.9,3.13367407]
[1762604118041,0.04058465,158.94,158.9,3.13367407]
[1762604118645,0.04058465,158.94,158.92,3.09]
[1762604119451,0.04058465,158.94,158.93,3.09]
[1762604119645,156.20160128,159.01,158.93,3.09]
[1762604120146,156.20160128,159.01,158.95,3.09]
[1762604120147,159.22160128,159.01,158.95,3.09]
[1762604120655,0.04541746,159.0,158.96,3.13589352]
[1762604121745,0.04541746,159.0,158.96,5.18677018]
[1762604122049,0.04541746,159.0,158.96,10.85157018]
[1762604122251,3.06541746,159.0,158.96,5.18677018]
[1762604122446,3.06541746,159.0,158.96,3.13589352]
[1762604122648,3.06541746,159.0,158.96,0.04589352]
[1762604123449,3.02,158.99,158.96,0.04589352]
[1762604130956,3.02,158.99,158.96,10.85157018]
[1762604131260,3.02541746,159.0,158.96,10.85157018]
[1762604131661,3.02541746,159.0,158.97,5.6645]
[1762604131961,3.02541746,159.0,158.97,8.7545]
[1762604132156,3.02541746,159.0,158.98,2.05087666]
[1762604132461,3.02541746,159.0,158.98,10.80497666]
[1762604132462,0.04541746,159.0,158.98,10.80497666]
[1762604132662,0.04541746,159.0,158.99,3.09]
[1762604134568,0.04541746,159.0,158.98,5.14087666]
[1762604135356,3.02541746,159.0,158.96,5.18677018]
[1762604135550,3.02541746,159.0,158.97,8.7544]
[1762604135753,0.04541746,159.0,158.98,5.14087666]
[1762604135949,0.04541746,159.0,158.99,3.09]
[1762604136658,0.04541746,159.0,158.99,5.14087666]
[1762604137261,0.04541746,159.0,158.99,3.09]
[1762604137468,0.04541746,159.0,158.99,5.14087666]
[1762604139362,0.04541746,159.0,158.99,3.09]
[1762604140464,3.02541746,159.0,158.96,10.85147018]
[1762604141156,3.02541746,159.0,158.96,7.76147018]
[1762604141368,3.02541746,159.0,158.96,0.04589352]
[1762604142472,2.98,158.99,158.96,0.04589352]
[1762604144677,3.23541746,159.0,158.97,2.05087666]
[1762604145474,3.23541746,159.0,158.97,8.7244]
[1762604146274,0.04541746,159.0,158.99,3.06]
[1762604146887,0.04541746,159.0,158.98,5.6641]
[1762604147181,0.04541746,159.0,158.98,8.7241]
[1762604147480,0.04541746,159.0,158.99,3.06]
[1762604148280,0.04541746,159.0,158.99,5.11087666]
[1762604149590,3.19,159.06,159.03,5.6623]
[1762604150477,3.23137331,159.06,159.03,5.71054242]
[1762604151188,3.23137331,159.06,159.03,0.04824242]
[1762604154279,0.04137331,159.06,159.04,5.6619]
[1762604154483,0.04137331,159.06,159.04,8.7219]
[1762604155589,3.23137331,159.06,159.03,0.04824242]
[1762604157695,3.23137331,159.06,159.03,3.10824242]
[1762604158194,0.04137331,159.06,159.03,8.77044242]
[1762604158591,0.04137331,159.06,159.04,8.7219]
[1762604159799,0.04137331,159.06,159.05,3.06]
[1762604160290,270.14182619,159.11,159.06,3.06]
[1762604160492,3.19,159.1,159.07,3.06]
[1762604160987,3.19,159.1,159.07,8.7209]
[1762604161192,0.04569751,159.1,159.07,3.10700729]
[1762604161400,8.64009134,159.17,159.09,3.04]
[1762604161586,9.26144455,159.16,159.12,2.05087666]
[1762604161791,10.690968,159.2,159.13,3.04]
[1762604161999,9.26512919,159.19,159.13,3.04]
[1762604162296,2.93,159.2,159.15,3.04]
[1762604162593,2.97131251,159.19,159.16,0.04773528]
[1762604163001,0.04131251,159.19,159.16,3.08773528]
[1762604163698,0.04131251,159.19,159.17,3.04]
[1762604164094,0.04131251,159.19,159.17,8.6972]
[1762604164295,0.04131251,159.19,159.18,3.04]
[1762604164996,0.04131251,159.19,159.16,0.04773528]
[1762604164997,2.93,159.25,159.19,8.6964]
[1762604165200,2.93,159.25,159.19,3.04]
[1762604165706,2.93,159.25,159.21,3.04]
[1762604165896,2.97732909,159.25,159.21,0.0422354]
[1762604166698,8.63202909,159.25,159.21,0.0422354]
[1762604167002,2.93,159.24,159.21,0.0422354]
[1762604167801,2.93,159.23,159.21,0.0422354]
[1762604168296,2.97732909,159.25,159.21,0.0422354]
[1762604168500,2.97732909,159.25,159.21,3.0822354]
[1762604169097,0.04732909,159.25,159.21,3.0822354]
[1762604169305,0.04732909,159.25,159.22,8.6954]
[1762604169495,0.04732909,159.25,159.23,3.04]
[1762604169898,0.04732909,159.25,159.24,3.04]
[1762604170403,2.97732909,159.25,159.21,3.0822354]
[1762604170706,2.97732909,159.25,159.21,0.0422354]
[1762604173297,8.18604766,159.25,159.21,0.0422354]
[1762604173503,2.93,159.24,159.21,0.0422354]
[1762604173707,2.93,159.23,159.21,0.0422354]
[1762604174406,2.93,159.24,159.21,0.0422354]
[1762604175004,8.5851,159.24,159.21,0.0422354]
[1762604175307,2.93,159.23,159.21,0.0422354]
[1762604177509,2.93,159.24,159.21,0.0422354]
[1762604179307,2.97732909,159.25,159.21,3.0822354]
[1762604183610,2.97732909,159.25,159.21,8.7381354]
[1762604184597,2.97732909,159.25,159.22,5.6555]
[1762604186100,0.04732909,159.25,159.24,3.04]
[1762604188009,2.97732909,159.25,159.21,8.7379354]
[1762604188509,2.97732909,159.25,159.21,3.0822354]
[1762604190302,2.97732909,159.25,159.21,0.0422354]
[1762604190609,2.93,159.24,159.21,0.0422354]
[1762604191114,2.91,159.23,159.21,0.0422354]
[1762604191912,6.15159122,159.25,159.21,0.0422354]
[1762604192113,2.91,159.24,159.21,0.0422354]
[1762604193614,2.91,159.22,159.21,0.0422354]
[1762604195516,0.04732909,159.25,159.21,3.0222354]
[1762604195715,2.95732909,159.25,159.21,3.0222354]
[1762604196114,0.04732909,159.25,159.21,3.0222354]
[1762604197022,0.04732909,159.25,159.21,8.6781354]
[1762604197218,0.04732909,159.25,159.22,2.98]
[1762604197523,2.95732909,159.25,159.21,0.0422354]
[1762604197826,2.95732909,159.25,159.21,3.0222354]
[1762604198022,8.61192909,159.25,159.21,3.0222354]
[1762604198218,2.91,159.24,159.21,0.0422354]
[1762604199523,2.91,159.22,159.15,2.98]
[1762604199718,2.91,159.22,159.12,2.98]
[1762604200335,2.91,159.19,159.12,2.98]
[1762604200626,0.04746788,159.17,159.14,3.02054996]
[1762604201023,2.95746788,159.17,159.14,0.04054996]
[1762604201524,2.91,159.15,159.14,0.04054996]
[1762604202013,2.91,159.14,159.08,2.98]
[1762604202728,8.5686,159.14,159.08,2.98]
[1762604203126,3.0967005,159.13,159.09,0.04694443]
[1762604205227,8.7557005,159.13,159.09,0.04694443]
[1762604205721,3.05,159.12,159.09,0.04694443]
[1762604205927,3.05,159.11,159.09,0.04694443]
[1762604207325,3.0967005,159.13,159.09,3.07694443]
[1762604207522,0.0467005,159.13,159.1,8.6897]
[1762604209523,0.0467005,159.13,159.1,3.03]
[1762604209725,0.0467005,159.13,159.09,0.04694443]
[1762604209726,3.0967005,159.13,159.09,0.04694443]
[1762604209922,3.0967005,159.13,159.09,3.07694443]
[1762604211433,3.0967005,159.13,159.09,0.04694443]
[1762604214734,3.0967005,159.13,159.1,3.03]
[1762604214934,0.0467005,159.13,159.1,3.03]
[1762604215132,3.05,159.12,159.09,5.70704443]
[1762604215334,3.05,159.12,159.09,0.04694443]
[1762604215536,3.05,159.12,159.09,3.07694443]
[1762604215835,0.0467005,159.13,159.09,3.07694443]
[1762604216137,0.0467005,159.13,159.1,3.03]
[1762604217751,3.0967005,159.13,159.1,3.03]
[1762604218749,0.0467005,159.13,159.1,8.6898]
[1762604218948,0.0467005,159.13,159.1,3.03]
[1762604220252,3.0967005,159.13,159.1,3.03]
[1762604221152,3.0967005,159.13,159.09,0.04694443]
[1762604221455,3.0967005,159.13,159.01,3.03]
[1762604221653,3.07,159.08,159.01,3.03]
[1762604222048,3.07,159.08,158.94,3.03]
[1762604222256,3.07,159.03,158.96,8.6947]
[1762604222458,3.07,159.03,158.91,16.14]
[1762604222459,3.07,159.03,158.97,3.03]
[1762604222655,3.07,159.03,158.91,16.14]
[1762604222656,0.04234314,159.01,158.98,3.07414564]
[1762604224257,0.04234314,159.01,158.98,8.73814564]
[1762604224453,0.04234314,159.01,158.99,3.03]
[1762604224655,0.04234314,159.01,158.99,8.6936]
[1762604224859,3.07,159.06,159.0,3.03]
[1762604225759,0.04341962,159.05,159.01,3.07725308]
[1762604225957,0.04291738,159.05,159.01,3.07725308]
[1762604226159,3.11291738,159.05,159.01,0.04725308]
[1762604226552,8.77471738,159.05,159.01,0.04725308]
[1762604226752,3.07,159.04,159.01,0.04725308]
[1762604229955,3.07,159.03,159.01,0.04725308]
[1762604231261,0.04291738,159.05,159.01,0.04725308]
[1762604231262,3.11291738,159.05,159.01,8.74015308]
[1762604231561,3.11291738,159.05,159.01,0.04725308]
[1762604233566,8.77481738,159.05,159.01,0.04725308]
[1762604233766,3.07,159.04,159.01,0.04725308]
[1762604234358,8.7323,159.04,159.01,0.04725308]
[1762604234558,3.07,159.03,159.01,0.04725308]
[1762604235169,3.11291738,159.05,159.01,0.04725308]
[1762604235960,3.11291738,159.05,159.01,3.07725308]
[1762604236860,3.11291738,159.05,159.01,0.04725308]
[1762604237061,3.07,159.02,159.01,0.04725308]
[1762604239367,3.07,159.04,159.01,0.04725308]
[1762604241163,3.11291738,159.05,159.01,3.07725308]
[1762604241872,0.04291738,159.05,159.01,3.07725308]
[1762604242974,0.04291738,159.05,159.04,3.03]
[1762604243774,3.07,159.15,159.06,3.03]
[1762604244159,3.07,159.15,159.07,3.03]
[1762604244662,0.04534552,159.13,159.09,3.07579516]
[1762604244863,0.04121989,159.13,159.11,3.03]
[1762604245466,153.62727106,159.19,159.12,3.03]
[1762604246166,3.07,159.2,159.13,3.03]
[1762604246560,0.04404467,159.18,159.16,3.03]
[1762604246761,0.04129188,159.19,159.16,3.03]
[1762604248669,0.04129188,159.19,159.16,8.6874]
[1762604248865,0.04129188,159.19,159.17,3.03]
[1762604251670,3.13129188,159.19,159.15,3.19459692]
[1762604251868,3.13129188,159.19,159.15,0.04459692]
[1762604252467,3.09,159.17,159.08,3.15]
[1762604252976,3.09,159.17,159.1,3.15]
[1762604253472,0.04425164,159.15,159.1,3.15]
[1762604253774,0.04425164,159.15,159.04,4.7431427]
[1762604253775,0.04425164,159.15,159.13,3.15]
[1762604253971,0.04651443,159.16,159.13,3.15]
[1762604254973,0.04651443,159.16,159.13,8.8086]
[1762604255179,0.04651443,159.16,159.14,3.15]
[1762604256784,3.13651443,159.16,159.13,8.8086]
[1762604256978,3.13651443,159.16,159.13,3.15]
[1762604256979,0.04651443,159.16,159.13,3.15]
[1762604257982,3.13651443,159.16,159.12,0.04315398]
[1762604259481,3.09,159.14,159.12,0.04315398]
[1762604260180,3.13651443,159.16,159.12,3.19315398]
[1762604260383,3.13651443,159.16,159.12,0.04315398]
[1762604264480,3.07,159.15,159.12,0.04315398]
[1762604265093,3.07,159.13,159.12,0.04315398]
[1762604266187,3.07,159.14,159.12,0.04315398]
[1762604266584,64.0,159.15,159.12,3.06315398]
[1762604266785,0.04651443,159.16,159.12,3.06315398]
[1762604266986,0.04651443,159.16,159.12,8.72205398]
[1762604267188,0.04651443,159.16,159.12,3.06315398]
[1762604267386,3.11651443,159.16,159.12,3.06315398]
[1762604268790,3.11651443,159.16,159.12,0.04315398]
[1762604270100,2.93,159.15,159.12,0.04315398]
[1762604272095,2.93,159.14,159.12,0.04315398]
[1762604275898,8.5885,159.14,159.12,0.04315398]
[1762604276102,2.93,159.13,159.12,0.04315398]
[1762604276993,2.93,159.11,159.07,5.6609]
[1762604277189,2.93,159.11,159.07,8.7909]
[1762604277904,8.5896,159.11,159.05,5.6614]
[1762604278099,8.5896,159.11,159.0,12.49948299]
[1762604278100,2.97018857,159.1,159.06,0.04099002]
[1762604278306,2.93,159.07,159.06,0.04099002]
[1762604278493,2.93,159.09,159.06,0.04099002]
[1762604278696,0.04018857,159.1,159.06,3.17099002]
[1762604279000,2.97018857,159.1,159.06,3.17099002]
[1762604280293,2.97018857,159.1,159.06,8.83219002]
[1762604280496,0.04018857,159.1,159.07,3.13]
[1762604280806,0.04018857,159.1,159.09,3.13]
[1762604282504,0.04018857,159.1,159.08,5.6604]
[1762604282703,0.04018857,159.1,159.06,8.79219002]
[1762604283098,0.04018857,159.1,159.07,3.09]
[1762604283701,0.04018857,159.1,159.07,8.7508]
[1762604284299,3.19018857,159.1,159.06,0.04099002]
[1762604284504,2.04786263,159.09,159.06,0.04099002]
[1762604284702,0.04018857,159.1,159.0,3.09]
[1762604284703,3.15,159.06,159.0,3.09]
[1762604285205,3.15,159.13,159.04,5.6618]
[1762604285505,5.19786263,159.11,159.04,3.09]
[1762604285705,0.04296115,159.09,159.06,0.04784423]
[1762604287807,0.04296115,159.09,159.06,3.13784423]
[1762604288902,0.04296115,159.09,159.07,3.09]
[1762604289403,0.04296115,159.09,159.06,3.13784423]
[1762604290907,0.04296115,159.09,159.08,3.09]
[1762604292910,3.19296115,159.09,159.06,0.04784423]
[1762604293111,0.04296115,159.09,159.06,3.13784423]
[1762604293511,0.04296115,159.09,159.06,8.79904423]
[1762604293712,0.04296115,159.09,159.07,3.09]
[1762604294813,0.04296115,159.09,159.08,3.09]
[1762604297510,3.15,159.15,159.09,3.09]
[1762604298522,3.19023339,159.14,159.1,0.04628415]
[1762604299609,0.04023339,159.14,159.1,3.13628415]
[1762604300520,3.19023339,159.14,159.1,3.13628415]
[1762604301220,3.15,159.12,159.1,0.04628415]
[1762604302711,5.69873339,159.14,159.1,0.04628415]
[1762604302918,0.04023339,159.14,159.1,3.13628415]
[1762604303420,3.19023339,159.14,159.1,3.13628415]
[1762604307222,3.19023339,159.14,159.1,8.79608415]
[1762604308229,3.15,159.13,159.1,0.04628415]
[1762604308927,0.04023339,159.14,159.1,3.13628415]
[1762604309129,3.19023339,159.14,159.1,3.13628415]
[1762604309928,3.19023339,159.14,159.11,8.7494]
[1762604310930,3.19023339,159.14,159.11,3.09]
[1762604311634,3.19023339,159.14,159.1,3.20628415]
[1762604313933,8.84883339,159.14,159.1,0.04628415]
[1762604314130,3.19023339,159.14,159.1,3.20628415]
[1762604314530,3.19023339,159.14,159.1,0.04628415]
[1762604315740,2.96,159.12,159.1,0.04628415]
[1762604317736,3.00023339,159.14,159.1,3.20628415]
[1762604318941,3.00023339,159.14,159.1,8.86608415]
[1762604319345,3.00023339,159.14,159.1,3.20628415]
[1762604319547,8.65883339,159.14,159.1,3.20628415]
[1762604319946,3.00023339,159.14,159.1,3.20628415]
[1762604320556,2.96,159.13,159.1,3.20628415]
[1762604320754,2.96,159.13,159.1,0.04628415]
[1762604326554,0.04023339,159.14,159.11,3.15]
[1762604327554,0.04023339,159.14,159.13,3.15]
[1762604327855,3.02,159.18,159.13,3.15]
[1762604328647,3.02,159.18,159.1,3.15]
[1762604328850,3.02,159.15,159.12,0.04498457]
[1762604329051,3.02,159.15,159.12,0.04611786]
[1762604331257,3.02,159.15,159.12,3.19611786]
[1762604331659,0.03982415,159.16,159.12,3.19611786]
[1762604332560,0.03982415,159.16,159.13,3.15]
[1762604334967,0.03982415,159.16,159.14,5.6583]
[1762604335167,0.03982415,159.16,159.14,8.8083]
[1762604338172,0.03982415,159.16,159.15,3.15]
[1762604339257,0.03982415,159.16,159.14,5.6583]
[1762604339462,0.03982415,159.16,159.14,8.8083]
[1762604340268,3.05982415,159.16,159.14,5.6583]
[1762604340476,3.05982415,159.16,159.12,0.04611786]
[1762604340867,3.05982415,159.16,159.12,3.19611786]
[1762604342172,3.05982415,159.16,159.12,8.85521786]
[1762604343873,3.05982415,159.16,159.12,3.19611786]
[1762604344377,3.05982415,159.16,159.12,0.04611786]
[1762604345465,3.05982415,159.16,159.12,3.17611786]